Workbook

Sheet NSU
B1: Anni Laakso | E1: 27.7.1994 Nurmo
B2: SUPERPESIS | E2: Runkosarja | I2: Kärkilyönnit (KL), pesänvälit | Q2: Runkosarja | U2: Ylempi loppusarja | Z2: Alempi loppusarja | AG2: Arvo-ottelut ja mitalit
B3: Vuosi | C3: Sija | D3: Seura | E3: OTT | F3: KUN | G3: LÖI | H3: TOI | I3: KL | J3: 0 > 1 | K3: 1 > 2 | L3: 2 > 3 | M3: 3 > k | N3: KL-% | P3: LÖI | Q3: TOI | R3: L+T | S3: KL | U3: OTT | V3: KUN | W3: LÖI | X3: TOI | Y3: KL | Z3: OTT | AA3: KUN | AB3: LÖI | AC3: TOI | AD3: KL | AE3: IL | AF3: LL | AG3: Halli | AH3: K | AI3: H | AJ3: P
B4: 2011 | C4: 3. | D4: SMJ | F4: ykköspesis
B5: 2012 | C5: 1. | D5: SMJ | F5: suomensarja
B6: 2013 | C6: 3. | D6: SMJ 2 | F6: suomensarja
B7: 2013 | C7: 2. | D7: SMJ | F7: ykköspesis | Z7: 2 | AA7: 1 | AB7: 0 | AC7: 1 | AD7: 7
B8: 2014 | C8: 2. | D8: SMJ | F8: ykköspesis | Z8: 3 | AA8: 0 | AB8: 6 | AC8: 1 | AD8: 7
B9: 2015 | C9: 12. | D9: YPJ | F9: ykköspesis
B10: 2015 | C10: 10. | D10: SMJ | E10: 9 | F10: 1 | G10: 4 | H10: 2 | I10: 14 | J10: 1 | K10: 1 | L10: 7 | M10: 5 | N10: 29.8 % | O10: 47 | T10: =PRODUCT(L10/S10) -> 
B11: 2016
B12: 2017 | C12: 10. | D12: NJ | F12: ykköspesis
B13: 2018 | C13: 10. | D13: NJ | F13: ykköspesis
B14: 2019 | C14: 5. | D14: SMJ | E14: 24 | F14: 2 | G14: 14 | H14: 14 | I14: 64 | J14: 14 | K14: 18 | L14: 16 | M14: 16 | N14: 47.4 % | O14: 135 | U14: 4 | V14: 0 | W14: 0 | X14: 1 | Y14: 11
B15: 2020 | C15: 6. | D15: SMJ | E15: 20 | F15: 3 | G15: 28 | H15: 16 | I15: 83 | J15: 8 | K15: 17 | L15: 27 | M15: 31 | N15: 62.9 % | O15: 132 | U15: 3 | V15: 0 | W15: 0 | X15: 2 | Y15: 8
B16: 2021 | C16: 5. | D16: SMJ | E16: 24 | F16: 3 | G16: 46 | H16: 15 | I16: 91 | J16: 7 | K16: 12 | L16: 23 | M16: 49 | N16: 54.5 % | O16: 167 | P16: 8. | R16: 6. | U16: 4 | V16: 0 | W16: 2 | X16: 0 | Y16: 6 | AE16: 1
B17: 2022 | C17: 5. | D17: SMJ | E17: 4 | F17: 0 | G17: 2 | H17: 2 | I17: 9 | J17: 6 | K17: 0 | L17: 1 | M17: 2 | N17: 75.0 % | O17: 12
B18: 2023 | C18: 5. | D18: SMJ 2 | F18: ykköspesis | Z18: 2 | AA18: 1 | AB18: 0 | AC18: 1 | AD18: 7
B19: 2023 | C19: 4. | D19: SMJ | E19: 18 | F19: 4 | G19: 19 | H19: 9 | I19: 55 | J19: 7 | K19: 8 | L19: 17 | M19: 23 | N19: 55.6 % | O19: 99 | U19: 10 | V19: 0 | W19: 4 | X19: 5 | Y19: 23 | AE19: 1
B20: 2024 | C20: 3. | D20: SMJ | E20: 22 | F20: 3 | G20: 17 | H20: 7 | I20: 52 | J20: 3 | K20: 12 | L20: 17 | M20: 20 | N20: 57.1 % | O20: 91 | U20: 1 | V20: 0 | W20: 0 | X20: 0 | Y20: 1 | AJ20: 1
B21: Yhteensä | E21: =SUM(E4:E20) -> 121 | F21: 16 | G21: 130 | H21: 65 | I21: 368 | J21: 46 | K21: 68 | L21: 108 | M21: 146 | N21: =PRODUCT(I21/O21) -> 53.9 % | O21: =SUM(O4:O20) -> 683 | U21: 22 | V21: 0 | W21: 6 | X21: 8 | Y21: 49 | Z21: 7 | AA21: 2 | AB21: 6 | AC21: 3 | AD21: 21 | AE21: 2 | AF21: 0 | AG21: 0 | AH21: 0 | AI21: 0 | AJ21: 1
B22: Pesispörssi | D22: =SUM(F21:H21)+((I21-F21-G21)/3)+(E21/3)+(AE21*25)+(AF21*25)+(AG21*10)+(AH21*25)+(AI21*20)+(AJ21*15) -> 390.3
B24: URA SUPERISSA | E24: OTT | F24: KUN | G24: LÖI | H24: TOI | I24: KL | K24: ka/L | L24: ka/T | M24: ka/KL | N24: K - % | P24: ENSIMMÄISET
B25: Runkosarja | E25: =PRODUCT(E21) -> 121 | F25: =PRODUCT(F21) -> 16 | G25: =PRODUCT(G21) -> 130 | H25: =PRODUCT(H21) -> 65 | I25: =PRODUCT(I21) -> 368 | K25: =PRODUCT((F25+G25)/E25) -> 1.21 | L25: =PRODUCT(H25/E25) -> 0.54 | M25: =PRODUCT(I25/E25) -> 3.04 | N25: =PRODUCT(N21) -> 53.9 % | O25: =PRODUCT(O21) -> 683 | P25: Ottelu | R25: 28.08. 2013 ViU - SMJ 1-0 (18-1, 2-2) | AA25: 1. ottelu | AC25: 19 v 1 kk 1 pv
B26: Ylempi loppusarja | E26: =SUM(U21) -> 22 | F26: =SUM(V21) -> 0 | G26: =SUM(W21) -> 6 | H26: =SUM(X21) -> 8 | I26: =SUM(Y21) -> 49 | K26: =PRODUCT((F26+G26)/E26) -> 0.27 | L26: =PRODUCT(H26/E26) -> 0.36 | M26: =PRODUCT(I26/E26) -> 2.23 | N26: =PRODUCT(I26/O26) -> 48.5 % | O26: 101 | P26: Lyöty | R26: 28.08. 2013 ViU - SMJ 1-0 (18-1, 2-2) | AA26: 1. ottelu | AC26: 19 v 1 kk 1 pv
B27: Alempi loppusarja | E27: =PRODUCT(Z21) -> 7 | F27: =PRODUCT(AA21) -> 2 | G27: =PRODUCT(AB21) -> 6 | H27: =PRODUCT(AC21) -> 3 | I27: =PRODUCT(AD21) -> 21 | K27: =PRODUCT((F27+G27)/E27) -> 1.14 | L27: =PRODUCT(H27/E27) -> 0.43 | M27: =PRODUCT(I27/E27) -> 3.00 | N27: =PRODUCT(I27/O27) -> 56.8 % | O27: 37 | P27: Tuotu | R27: 28.08. 2013 ViU - SMJ 1-0 (18-1, 2-2) | AA27: 1. ottelu | AC27: 19 v 1 kk 1 pv
B28: KAIKKI | E28: =SUM(E25:E27) -> 150 | F28: =SUM(F25:F27) -> 18 | G28: =SUM(G25:G27) -> 142 | H28: =SUM(H25:H27) -> 76 | I28: =SUM(I25:I27) -> 438 | K28: =PRODUCT((F28+G28)/E28) -> 1.07 | L28: =PRODUCT(H28/E28) -> 0.51 | M28: =PRODUCT(I28/E28) -> 2.92 | N28: =PRODUCT(I28/O28) -> 53.3 % | O28: =SUM(O25:O27) -> 821 | P28: Kunnari | R28: 28.08. 2013 ViU - SMJ 1-0 (18-1, 2-2) | AA28: 1. ottelu | AC28: 19 v 1 kk 1 pv
B30: Seurat | D30: NJ = Nurmon Jymy (1925), kasvattajaseura
D31: SMJ = Seinäjoen Maila-Jussit (1932)
D32: YPJ = Ylihärmän Pesis-Junkkarit (1996)

Sheet Arvo-ottelut
B1: ITÄ - LÄNSI - KORTTI
B2: Anni Laakso | C2: 27.7.1994 Nurmo
B3: NAISET | C3: Itä - Länsi, tulos | D3: Joukkue | E3: Seura | G3: V | H3: T | I3: H | J3: Up. | K3: Lj. | L3: Palk. | M3: O | N3: K | O3: L | P3: T | Q3: KL | R3: 1 | S3: 2 | T3: 3 | U3: k | V3: KL-% | W3: Pelinjohtaja | X3: Yleisöä
B4: 07.08. 2021 Pori | C4: 0-2 (1-4, 0-3) | D4: Länsi | E4: SMJ | G4: 1 | J4: 2k | K4: 5 | M4: 1 | O4: 1 | Q4: 3/7 | S4: 1/2 | T4: 1/1 | U4: 1/4 | V4: 42.9 % | W4: Jarkko Pokela | X4: 3050
B5: 05.08. 2023 Sotkamo | C5: 0-2 (4-9, 1-5) | D5: Länsi | E5: SMJ | G5: 1 | J5: 2k | K5: 8 | M5: 1 | Q5: 1/2 | S5: 0/1 | T5: 1/1 | V5: 50.0 % | W5: Jarkko Pokela | X5: 2780
B6: Yhteensä | G6: =SUM(G4:G5) -> 2 | M6: =SUM(M4:M5) -> 2 | O6: =SUM(O4:O5) -> 1 | Q6: 4/9 | S6: 1/3 | T6: 2/2 | U6: 1/4 | V6: 44.4 %
B7: Ikä ensimmäisessä ottelussa | C7: 26 v 11 kk 20 pv
